Workbook

Sheet Data
A1: Drug | B1: 2-DG | C1: 2-DG | D1: 2-DG | E1: 2-DG | F1: 2-DG | G1: 2-DG | H1: 2-DG | I1: 2-DG | J1: 2-DG | K1: 2-DG | L1: 2-DG | M1: 2-DG | N1: 2-DG | O1: 2-DG | P1: 2-DG | Q1: 2-DG | R1: 2-DG | S1: 2-DG | T1: AICAR | U1: AICAR | V1: AICAR | W1: AICAR | X1: AICAR | Y1: AICAR | Z1: AICAR | AA1: AICAR | AB1: AICAR | AC1: AICAR | AD1: AICAR | AE1: AICAR | AF1: AICAR | AG1: AICAR | AH1: AICAR | AI1: AICAR | AJ1: AICAR | AK1: AICAR | AL1: Metformin | AM1: Metformin | AN1: Metformin | AO1: Metformin | AP1: Metformin | AQ1: Metformin | AR1: Metformin | AS1: Metformin | AT1: Metformin | AU1: Metformin | AV1: Metformin | AW1: Metformin | AX1: Metformin | AY1: Metformin | AZ1: Metformin
A2: DataID | B2: 200601_17 | C2: 200601_17 | D2: 200601_17 | E2: 200601_18 | F2: 200601_18 | G2: 200601_18 | H2: 200601_22 | I2: 200601_22 | J2: 200601_22 | K2: 200608_19 | L2: 200608_19 | M2: 200608_19 | N2: 200608_21 | O2: 200608_21 | P2: 200608_21 | Q2: 200608_22 | R2: 200608_22 | S2: 200608_22 | T2: 200601_16 | U2: 200601_16 | V2: 200601_16 | W2: 200601_18 | X2: 200601_18 | Y2: 200601_18 | Z2: 200601_21 | AA2: 200601_21 | AB2: 200601_21 | AC2: 200608_15 | AD2: 200608_15 | AE2: 200608_15 | AF2: 200608_16 | AG2: 200608_16 | AH2: 200608_16 | AI2: 200608_18 | AJ2: 200608_18 | AK2: 200608_18 | AL2: 200518_18 | AM2: 200518_18 | AN2: 200518_18 | AO2: 200518_20 | AP2: 200518_20 | AQ2: 200518_20 | AR2: 200518_21 | AS2: 200518_21 | AT2: 200518_21 | AU2: 200522_17 | AV2: 200522_17 | AW2: 200522_17 | AX2: 200522_18 | AY2: 200522_18 | AZ2: 200522_18
A3: Layer | B3: GCL | C3: IPL | D3: PRS | E3: GCL | F3: IPL | G3: PRS | H3: GCL | I3: IPL | J3: PRS | K3: GCL | L3: IPL | M3: PRS | N3: GCL | O3: IPL | P3: PRS | Q3: GCL | R3: IPL | S3: PRS | T3: GCL | U3: IPL | V3: PRS | W3: GCL | X3: IPL | Y3: PRS | Z3: GCL | AA3: IPL | AB3: PRS | AC3: GCL | AD3: IPL | AE3: PRS | AF3: GCL | AG3: IPL | AH3: PRS | AI3: GCL | AJ3: IPL | AK3: PRS | AL3: GCL | AM3: IPL | AN3: PRS | AO3: GCL | AP3: IPL | AQ3: PRS | AR3: GCL | AS3: IPL | AT3: PRS | AU3: GCL | AV3: IPL | AW3: PRS | AX3: GCL | AY3: IPL | AZ3: PRS
A4: -30 | B4: 0.694 | C4: 0.761 | D4: 0.66 | E4: 0.698 | F4: 0.744 | G4: 0.668 | H4: 0.687 | I4: 0.743 | J4: 0.68 | K4: 0.688 | L4: 0.747 | M4: 0.677 | N4: 0.712 | O4: 0.773 | P4: 0.676 | Q4: 0.702 | R4: 0.764 | S4: 0.679 | T4: 0.694 | U4: 0.737 | V4: 0.664 | W4: 0.678 | X4: 0.732 | Y4: 0.671 | Z4: 0.682 | AA4: 0.75 | AB4: 0.671 | AC4: 0.661 | AD4: 0.748 | AE4: 0.663 | AF4: 0.697 | AG4: 0.75 | AH4: 0.677 | AI4: 0.693 | AJ4: 0.746 | AK4: 0.669 | AL4: 0.698 | AM4: 0.768 | AN4: 0.69 | AO4: 0.72 | AP4: 0.755 | AQ4: 0.711 | AR4: 0.688 | AS4: 0.752 | AT4: 0.682 | AU4: 0.7 | AV4: 0.75 | AW4: 0.735 | AX4: 0.714 | AY4: 0.77 | AZ4: 0.73
A5: -20 | B5: 0.693 | C5: 0.759 | D5: 0.658 | E5: 0.7 | F5: 0.744 | G5: 0.668 | H5: 0.685 | I5: 0.74 | J5: 0.677 | K5: 0.682 | L5: 0.747 | M5: 0.671 | N5: 0.703 | O5: 0.764 | P5: 0.669 | Q5: 0.691 | R5: 0.749 | S5: 0.67 | T5: 0.686 | U5: 0.731 | V5: 0.647 | W5: 0.674 | X5: 0.731 | Y5: 0.669 | Z5: 0.687 | AA5: 0.752 | AB5: 0.67 | AC5: 0.67 | AD5: 0.751 | AE5: 0.662 | AF5: 0.698 | AG5: 0.754 | AH5: 0.673 | AI5: 0.688 | AJ5: 0.746 | AK5: 0.664 | AL5: 0.72 | AM5: 0.768 | AN5: 0.696 | AO5: 0.716 | AP5: 0.756 | AQ5: 0.713 | AR5: 0.692 | AS5: 0.75 | AT5: 0.689 | AU5: 0.694 | AV5: 0.744 | AW5: 0.724 | AX5: 0.718 | AY5: 0.77 | AZ5: 0.726
A6: -10 | B6: 0.699 | C6: 0.759 | D6: 0.658 | E6: 0.707 | F6: 0.748 | G6: 0.666 | H6: 0.686 | I6: 0.742 | J6: 0.676 | K6: 0.679 | L6: 0.745 | M6: 0.671 | N6: 0.7 | O6: 0.761 | P6: 0.669 | Q6: 0.688 | R6: 0.748 | S6: 0.67 | T6: 0.689 | U6: 0.726 | V6: 0.651 | W6: 0.678 | X6: 0.733 | Y6: 0.666 | Z6: 0.684 | AA6: 0.75 | AB6: 0.67 | AC6: 0.667 | AD6: 0.752 | AE6: 0.662 | AF6: 0.692 | AG6: 0.751 | AH6: 0.677 | AI6: 0.695 | AJ6: 0.744 | AK6: 0.661 | AL6: 0.713 | AM6: 0.77 | AN6: 0.69 | AO6: 0.714 | AP6: 0.752 | AQ6: 0.702 | AR6: 0.693 | AS6: 0.749 | AT6: 0.686 | AU6: 0.693 | AV6: 0.743 | AW6: 0.722 | AX6: 0.713 | AY6: 0.766 | AZ6: 0.724
A7: 0 | B7: 0.699 | C7: 0.758 | D7: 0.657 | E7: 0.706 | F7: 0.745 | G7: 0.667 | H7: 0.686 | I7: 0.739 | J7: 0.672 | K7: 0.687 | L7: 0.75 | M7: 0.673 | N7: 0.704 | O7: 0.763 | P7: 0.672 | Q7: 0.693 | R7: 0.75 | S7: 0.672 | T7: 0.685 | U7: 0.735 | V7: 0.651 | W7: 0.675 | X7: 0.731 | Y7: 0.664 | Z7: 0.681 | AA7: 0.75 | AB7: 0.67 | AC7: 0.666 | AD7: 0.748 | AE7: 0.662 | AF7: 0.693 | AG7: 0.752 | AH7: 0.671 | AI7: 0.691 | AJ7: 0.746 | AK7: 0.662 | AL7: 0.702 | AM7: 0.768 | AN7: 0.691 | AO7: 0.715 | AP7: 0.748 | AQ7: 0.701 | AR7: 0.689 | AS7: 0.752 | AT7: 0.684 | AU7: 0.688 | AV7: 0.741 | AW7: 0.716 | AX7: 0.708 | AY7: 0.764 | AZ7: 0.72
A8: 10 | B8: 0.701 | C8: 0.757 | D8: 0.661 | E8: 0.71 | F8: 0.747 | G8: 0.677 | H8: 0.693 | I8: 0.741 | J8: 0.699 | K8: 0.69 | L8: 0.751 | M8: 0.677 | N8: 0.705 | O8: 0.764 | P8: 0.676 | Q8: 0.692 | R8: 0.752 | S8: 0.678 | T8: 0.694 | U8: 0.736 | V8: 0.648 | W8: 0.696 | X8: 0.746 | Y8: 0.663 | Z8: 0.723 | AA8: 0.771 | AB8: 0.668 | AC8: 0.675 | AD8: 0.75 | AE8: 0.659 | AF8: 0.703 | AG8: 0.756 | AH8: 0.671 | AI8: 0.7 | AJ8: 0.747 | AK8: 0.662 | AL8: 0.714 | AM8: 0.769 | AN8: 0.695 | AO8: 0.711 | AP8: 0.751 | AQ8: 0.703 | AR8: 0.692 | AS8: 0.753 | AT8: 0.683 | AU8: 0.687 | AV8: 0.741 | AW8: 0.714 | AX8: 0.7 | AY8: 0.757 | AZ8: 0.716
A9: 20 | B9: 0.741 | C9: 0.771 | D9: 0.899 | E9: 0.734 | F9: 0.763 | G9: 0.891 | H9: 0.713 | I9: 0.759 | J9: 0.861 | K9: 0.711 | L9: 0.769 | M9: 0.891 | N9: 0.73 | O9: 0.781 | P9: 0.911 | Q9: 0.725 | R9: 0.773 | S9: 0.898 | T9: 0.802 | U9: 0.809 | V9: 0.693 | W9: 0.812 | X9: 0.827 | Y9: 0.701 | Z9: 0.827 | AA9: 0.83 | AB9: 0.697 | AC9: 0.816 | AD9: 0.815 | AE9: 0.681 | AF9: 0.816 | AG9: 0.824 | AH9: 0.7 | AI9: 0.783 | AJ9: 0.795 | AK9: 0.687 | AL9: 0.7 | AM9: 0.767 | AN9: 0.69 | AO9: 0.711 | AP9: 0.746 | AQ9: 0.696 | AR9: 0.695 | AS9: 0.755 | AT9: 0.685 | AU9: 0.681 | AV9: 0.736 | AW9: 0.702 | AX9: 0.711 | AY9: 0.76 | AZ9: 0.715
A10: 30 | B10: 0.756 | C10: 0.786 | D10: 0.862 | E10: 0.746 | F10: 0.772 | G10: 0.893 | H10: 0.721 | I10: 0.766 | J10: 0.865 | K10: 0.731 | L10: 0.784 | M10: 0.917 | N10: 0.754 | O10: 0.805 | P10: 0.923 | Q10: 0.743 | R10: 0.788 | S10: 0.898 | T10: 0.846 | U10: 0.842 | V10: 0.729 | W10: 0.869 | X10: 0.86 | Y10: 0.742 | Z10: 0.862 | AA10: 0.854 | AB10: 0.736 | AC10: 0.865 | AD10: 0.842 | AE10: 0.715 | AF10: 0.866 | AG10: 0.855 | AH10: 0.742 | AI10: 0.838 | AJ10: 0.831 | AK10: 0.728 | AL10: 0.691 | AM10: 0.779 | AN10: 0.684 | AO10: 0.71 | AP10: 0.751 | AQ10: 0.688 | AR10: 0.703 | AS10: 0.781 | AT10: 0.68 | AU10: 0.686 | AV10: 0.745 | AW10: 0.709 | AX10: 0.721 | AY10: 0.781 | AZ10: 0.725
A11: 40 | B11: 0.764 | C11: 0.788 | D11: 0.854 | E11: 0.75 | F11: 0.776 | G11: 0.879 | H11: 0.728 | I11: 0.767 | J11: 0.848 | K11: 0.741 | L11: 0.788 | M11: 0.916 | N11: 0.771 | O11: 0.814 | P11: 0.914 | Q11: 0.748 | R11: 0.798 | S11: 0.895 | T11: 0.862 | U11: 0.857 | V11: 0.752 | W11: 0.885 | X11: 0.872 | Y11: 0.773 | Z11: 0.875 | AA11: 0.864 | AB11: 0.766 | AC11: 0.88 | AD11: 0.851 | AE11: 0.743 | AF11: 0.882 | AG11: 0.867 | AH11: 0.779 | AI11: 0.857 | AJ11: 0.841 | AK11: 0.77 | AL11: 0.75 | AM11: 0.822 | AN11: 0.699 | AO11: 0.74 | AP11: 0.775 | AQ11: 0.698 | AR11: 0.73 | AS11: 0.808 | AT11: 0.698 | AU11: 0.699 | AV11: 0.761 | AW11: 0.72 | AX11: 0.75 | AY11: 0.808 | AZ11: 0.745
A12: 50 | B12: 0.765 | C12: 0.786 | D12: 0.833 | E12: 0.75 | F12: 0.773 | G12: 0.859 | H12: 0.725 | I12: 0.766 | J12: 0.842 | K12: 0.744 | L12: 0.789 | M12: 0.909 | N12: 0.773 | O12: 0.814 | P12: 0.901 | Q12: 0.752 | R12: 0.797 | S12: 0.89 | T12: 0.871 | U12: 0.861 | V12: 0.777 | W12: 0.893 | X12: 0.877 | Y12: 0.793 | Z12: 0.882 | AA12: 0.873 | AB12: 0.788 | AC12: 0.885 | AD12: 0.855 | AE12: 0.771 | AF12: 0.883 | AG12: 0.874 | AH12: 0.8 | AI12: 0.863 | AJ12: 0.846 | AK12: 0.792 | AL12: 0.771 | AM12: 0.848 | AN12: 0.708 | AO12: 0.771 | AP12: 0.797 | AQ12: 0.72 | AR12: 0.749 | AS12: 0.834 | AT12: 0.713 | AU12: 0.721 | AV12: 0.785 | AW12: 0.74 | AX12: 0.771 | AY12: 0.825 | AZ12: 0.776
A13: 60 | B13: 0.768 | C13: 0.785 | D13: =NA() ->  | E13: 0.758 | F13: 0.776 | G13: =NA() ->  | H13: 0.729 | I13: 0.768 | J13: =NA() ->  | K13: 0.746 | L13: 0.793 | M13: =NA() ->  | N13: 0.777 | O13: 0.823 | P13: =NA() ->  | Q13: 0.756 | R13: 0.809 | S13: =NA() ->  | T13: 0.87 | U13: 0.867 | V13: 0.796 | W13: 0.9 | X13: 0.881 | Y13: 0.81 | Z13: 0.889 | AA13: 0.874 | AB13: 0.803 | AC13: 0.887 | AD13: 0.861 | AE13: 0.783 | AF13: 0.886 | AG13: 0.877 | AH13: 0.812 | AI13: 0.867 | AJ13: 0.85 | AK13: 0.807 | AL13: 0.777 | AM13: 0.858 | AN13: 0.718 | AO13: 0.798 | AP13: 0.818 | AQ13: 0.739 | AR13: 0.771 | AS13: 0.85 | AT13: 0.734 | AU13: 0.75 | AV13: 0.805 | AW13: 0.77 | AX13: 0.792 | AY13: 0.835 | AZ13: 0.797
A14: 70 | B14: 0.772 | C14: 0.785 | D14: =NA() ->  | E14: 0.759 | F14: 0.77 | G14: =NA() ->  | H14: 0.726 | I14: 0.763 | J14: =NA() ->  | K14: 0.752 | L14: 0.793 | M14: =NA() ->  | N14: 0.774 | O14: 0.824 | P14: =NA() ->  | Q14: 0.76 | R14: 0.805 | S14: =NA() ->  | T14: 0.875 | U14: 0.866 | V14: 0.808 | W14: 0.904 | X14: 0.886 | Y14: 0.823 | Z14: 0.89 | AA14: 0.879 | AB14: 0.817 | AC14: 0.894 | AD14: 0.865 | AE14: 0.797 | AF14: 0.896 | AG14: 0.879 | AH14: 0.836 | AI14: 0.868 | AJ14: 0.861 | AK14: 0.82 | AL14: 0.768 | AM14: 0.866 | AN14: 0.746 | AO14: 0.811 | AP14: 0.828 | AQ14: 0.754 | AR14: 0.794 | AS14: 0.859 | AT14: 0.758 | AU14: 0.765 | AV14: 0.824 | AW14: 0.775 | AX14: 0.809 | AY14: 0.85 | AZ14: 0.812
A15: 80 | B15: 0.763 | C15: 0.783 | D15: =NA() ->  | E15: 0.757 | F15: 0.769 | G15: =NA() ->  | H15: 0.727 | I15: 0.765 | J15: =NA() ->  | K15: 0.75 | L15: 0.791 | M15: =NA() ->  | N15: 0.778 | O15: 0.826 | P15: =NA() ->  | Q15: 0.756 | R15: 0.803 | S15: =NA() ->  | T15: 0.882 | U15: 0.876 | V15: 0.813 | W15: 0.912 | X15: 0.891 | Y15: 0.827 | Z15: 0.891 | AA15: 0.878 | AB15: 0.826 | AC15: 0.888 | AD15: 0.865 | AE15: 0.803 | AF15: 0.899 | AG15: 0.883 | AH15: 0.833 | AI15: 0.873 | AJ15: 0.861 | AK15: 0.834 | AL15: 0.784 | AM15: 0.878 | AN15: 0.762 | AO15: 0.822 | AP15: 0.838 | AQ15: 0.771 | AR15: 0.802 | AS15: 0.872 | AT15: 0.776 | AU15: 0.776 | AV15: 0.826 | AW15: 0.788 | AX15: 0.812 | AY15: 0.848 | AZ15: 0.825
A16: 90 | B16: =NA() ->  | C16: =NA() ->  | D16: =NA() ->  | E16: =NA() ->  | F16: =NA() ->  | G16: =NA() ->  | H16: =NA() ->  | I16: =NA() ->  | J16: =NA() ->  | K16: =NA() ->  | L16: =NA() ->  | M16: =NA() ->  | N16: =NA() ->  | O16: =NA() ->  | P16: =NA() ->  | Q16: =NA() ->  | R16: =NA() ->  | S16: =NA() ->  | T16: 0.883 | U16: 0.877 | V16: 0.82 | W16: 0.91 | X16: 0.893 | Y16: 0.835 | Z16: 0.888 | AA16: 0.879 | AB16: 0.833 | AC16: 0.894 | AD16: 0.866 | AE16: 0.809 | AF16: 0.901 | AG16: 0.882 | AH16: 0.842 | AI16: 0.888 | AJ16: 0.86 | AK16: 0.833 | AL16: 0.79 | AM16: 0.879 | AN16: 0.775 | AO16: 0.833 | AP16: 0.846 | AQ16: 0.79 | AR16: 0.813 | AS16: 0.878 | AT16: 0.793 | AU16: 0.795 | AV16: 0.837 | AW16: 0.809 | AX16: 0.827 | AY16: 0.855 | AZ16: 0.844
A17: 100 | B17: =NA() ->  | C17: =NA() ->  | D17: =NA() ->  | E17: =NA() ->  | F17: =NA() ->  | G17: =NA() ->  | H17: =NA() ->  | I17: =NA() ->  | J17: =NA() ->  | K17: =NA() ->  | L17: =NA() ->  | M17: =NA() ->  | N17: =NA() ->  | O17: =NA() ->  | P17: =NA() ->  | Q17: =NA() ->  | R17: =NA() ->  | S17: =NA() ->  | T17: =NA() ->  | U17: =NA() ->  | V17: =NA() ->  | W17: =NA() ->  | X17: =NA() ->  | Y17: =NA() ->  | Z17: =NA() ->  | AA17: =NA() ->  | AB17: =NA() ->  | AC17: =NA() ->  | AD17: =NA() ->  | AE17: =NA() ->  | AF17: =NA() ->  | AG17: =NA() ->  | AH17: =NA() ->  | AI17: =NA() ->  | AJ17: =NA() ->  | AK17: =NA() ->  | AL17: 0.803 | AM17: 0.889 | AN17: 0.786 | AO17: 0.845 | AP17: 0.854 | AQ17: 0.798 | AR17: 0.829 | AS17: 0.89 | AT17: 0.811 | AU17: 0.812 | AV17: 0.852 | AW17: 0.827 | AX17: 0.842 | AY17: 0.864 | AZ17: 0.851
A18: 110 | B18: =NA() ->  | C18: =NA() ->  | D18: =NA() ->  | E18: =NA() ->  | F18: =NA() ->  | G18: =NA() ->  | H18: =NA() ->  | I18: =NA() ->  | J18: =NA() ->  | K18: =NA() ->  | L18: =NA() ->  | M18: =NA() ->  | N18: =NA() ->  | O18: =NA() ->  | P18: =NA() ->  | Q18: =NA() ->  | R18: =NA() ->  | S18: =NA() ->  | T18: =NA() ->  | U18: =NA() ->  | V18: =NA() ->  | W18: =NA() ->  | X18: =NA() ->  | Y18: =NA() ->  | Z18: =NA() ->  | AA18: =NA() ->  | AB18: =NA() ->  | AC18: =NA() ->  | AD18: =NA() ->  | AE18: =NA() ->  | AF18: =NA() ->  | AG18: =NA() ->  | AH18: =NA() ->  | AI18: =NA() ->  | AJ18: =NA() ->  | AK18: =NA() ->  | AL18: 0.794 | AM18: 0.901 | AN18: 0.805 | AO18: 0.858 | AP18: 0.864 | AQ18: 0.804 | AR18: 0.842 | AS18: 0.9 | AT18: 0.825 | AU18: 0.833 | AV18: 0.856 | AW18: 0.838 | AX18: 0.845 | AY18: 0.869 | AZ18: 0.86
A19: 120 | B19: =NA() ->  | C19: =NA() ->  | D19: =NA() ->  | E19: =NA() ->  | F19: =NA() ->  | G19: =NA() ->  | H19: =NA() ->  | I19: =NA() ->  | J19: =NA() ->  | K19: =NA() ->  | L19: =NA() ->  | M19: =NA() ->  | N19: =NA() ->  | O19: =NA() ->  | P19: =NA() ->  | Q19: =NA() ->  | R19: =NA() ->  | S19: =NA() ->  | T19: =NA() ->  | U19: =NA() ->  | V19: =NA() ->  | W19: =NA() ->  | X19: =NA() ->  | Y19: =NA() ->  | Z19: =NA() ->  | AA19: =NA() ->  | AB19: =NA() ->  | AC19: =NA() ->  | AD19: =NA() ->  | AE19: =NA() ->  | AF19: =NA() ->  | AG19: =NA() ->  | AH19: =NA() ->  | AI19: =NA() ->  | AJ19: =NA() ->  | AK19: =NA() ->  | AL19: 0.824 | AM19: 0.914 | AN19: 0.818 | AO19: 0.877 | AP19: 0.87 | AQ19: 0.823 | AR19: 0.858 | AS19: 0.908 | AT19: 0.832 | AU19: 0.834 | AV19: 0.862 | AW19: 0.845 | AX19: 0.854 | AY19: 0.878 | AZ19: 0.865
A20: 130 | B20: =NA() ->  | C20: =NA() ->  | D20: =NA() ->  | E20: =NA() ->  | F20: =NA() ->  | G20: =NA() ->  | H20: =NA() ->  | I20: =NA() ->  | J20: =NA() ->  | K20: =NA() ->  | L20: =NA() ->  | M20: =NA() ->  | N20: =NA() ->  | O20: =NA() ->  | P20: =NA() ->  | Q20: =NA() ->  | R20: =NA() ->  | S20: =NA() ->  | T20: =NA() ->  | U20: =NA() ->  | V20: =NA() ->  | W20: =NA() ->  | X20: =NA() ->  | Y20: =NA() ->  | Z20: =NA() ->  | AA20: =NA() ->  | AB20: =NA() ->  | AC20: =NA() ->  | AD20: =NA() ->  | AE20: =NA() ->  | AF20: =NA() ->  | AG20: =NA() ->  | AH20: =NA() ->  | AI20: =NA() ->  | AJ20: =NA() ->  | AK20: =NA() ->  | AL20: 0.823 | AM20: 0.912 | AN20: 0.829 | AO20: 0.888 | AP20: 0.873 | AQ20: 0.831 | AR20: 0.866 | AS20: 0.925 | AT20: 0.849 | AU20: 0.849 | AV20: 0.873 | AW20: 0.854 | AX20: 0.858 | AY20: 0.879 | AZ20: 0.871
A21: 140 | B21: =NA() ->  | C21: =NA() ->  | D21: =NA() ->  | E21: =NA() ->  | F21: =NA() ->  | G21: =NA() ->  | H21: =NA() ->  | I21: =NA() ->  | J21: =NA() ->  | K21: =NA() ->  | L21: =NA() ->  | M21: =NA() ->  | N21: =NA() ->  | O21: =NA() ->  | P21: =NA() ->  | Q21: =NA() ->  | R21: =NA() ->  | S21: =NA() ->  | T21: =NA() ->  | U21: =NA() ->  | V21: =NA() ->  | W21: =NA() ->  | X21: =NA() ->  | Y21: =NA() ->  | Z21: =NA() ->  | AA21: =NA() ->  | AB21: =NA() ->  | AC21: =NA() ->  | AD21: =NA() ->  | AE21: =NA() ->  | AF21: =NA() ->  | AG21: =NA() ->  | AH21: =NA() ->  | AI21: =NA() ->  | AJ21: =NA() ->  | AK21: =NA() ->  | AL21: 0.834 | AM21: 0.916 | AN21: 0.831 | AO21: 0.898 | AP21: 0.882 | AQ21: 0.84 | AR21: 0.875 | AS21: 0.916 | AT21: 0.857 | AU21: 0.857 | AV21: 0.878 | AW21: 0.851 | AX21: 0.866 | AY21: 0.88 | AZ21: 0.873
A22: 150 | B22: =NA() ->  | C22: =NA() ->  | D22: =NA() ->  | E22: =NA() ->  | F22: =NA() ->  | G22: =NA() ->  | H22: =NA() ->  | I22: =NA() ->  | J22: =NA() ->  | K22: =NA() ->  | L22: =NA() ->  | M22: =NA() ->  | N22: =NA() ->  | O22: =NA() ->  | P22: =NA() ->  | Q22: =NA() ->  | R22: =NA() ->  | S22: =NA() ->  | T22: =NA() ->  | U22: =NA() ->  | V22: =NA() ->  | W22: =NA() ->  | X22: =NA() ->  | Y22: =NA() ->  | Z22: =NA() ->  | AA22: =NA() ->  | AB22: =NA() ->  | AC22: =NA() ->  | AD22: =NA() ->  | AE22: =NA() ->  | AF22: =NA() ->  | AG22: =NA() ->  | AH22: =NA() ->  | AI22: =NA() ->  | AJ22: =NA() ->  | AK22: =NA() ->  | AL22: 0.85 | AM22: 0.911 | AN22: 0.841 | AO22: 0.898 | AP22: 0.875 | AQ22: 0.832 | AR22: 0.879 | AS22: 0.915 | AT22: 0.861 | AU22: 0.858 | AV22: 0.88 | AW22: 0.857 | AX22: 0.862 | AY22: 0.878 | AZ22: 0.875
A23: 160 | B23: =NA() ->  | C23: =NA() ->  | D23: =NA() ->  | E23: =NA() ->  | F23: =NA() ->  | G23: =NA() ->  | H23: =NA() ->  | I23: =NA() ->  | J23: =NA() ->  | K23: =NA() ->  | L23: =NA() ->  | M23: =NA() ->  | N23: =NA() ->  | O23: =NA() ->  | P23: =NA() ->  | Q23: =NA() ->  | R23: =NA() ->  | S23: =NA() ->  | T23: =NA() ->  | U23: =NA() ->  | V23: =NA() ->  | W23: =NA() ->  | X23: =NA() ->  | Y23: =NA() ->  | Z23: =NA() ->  | AA23: =NA() ->  | AB23: =NA() ->  | AC23: =NA() ->  | AD23: =NA() ->  | AE23: =NA() ->  | AF23: =NA() ->  | AG23: =NA() ->  | AH23: =NA() ->  | AI23: =NA() ->  | AJ23: =NA() ->  | AK23: =NA() ->  | AL23: 0.85 | AM23: 0.907 | AN23: 0.837 | AO23: 0.9 | AP23: 0.875 | AQ23: 0.841 | AR23: 0.888 | AS23: 0.918 | AT23: 0.873 | AU23: 0.862 | AV23: 0.874 | AW23: 0.875 | AX23: 0.864 | AY23: 0.882 | AZ23: 0.876
A24: 170 | B24: =NA() ->  | C24: =NA() ->  | D24: =NA() ->  | E24: =NA() ->  | F24: =NA() ->  | G24: =NA() ->  | H24: =NA() ->  | I24: =NA() ->  | J24: =NA() ->  | K24: =NA() ->  | L24: =NA() ->  | M24: =NA() ->  | N24: =NA() ->  | O24: =NA() ->  | P24: =NA() ->  | Q24: =NA() ->  | R24: =NA() ->  | S24: =NA() ->  | T24: =NA() ->  | U24: =NA() ->  | V24: =NA() ->  | W24: =NA() ->  | X24: =NA() ->  | Y24: =NA() ->  | Z24: =NA() ->  | AA24: =NA() ->  | AB24: =NA() ->  | AC24: =NA() ->  | AD24: =NA() ->  | AE24: =NA() ->  | AF24: =NA() ->  | AG24: =NA() ->  | AH24: =NA() ->  | AI24: =NA() ->  | AJ24: =NA() ->  | AK24: =NA() ->  | AL24: 0.858 | AM24: 0.902 | AN24: 0.847 | AO24: 0.903 | AP24: 0.873 | AQ24: 0.853 | AR24: 0.892 | AS24: 0.915 | AT24: 0.876 | AU24: 0.877 | AV24: 0.882 | AW24: 0.883 | AX24: 0.859 | AY24: 0.876 | AZ24: 0.885
A25: 180 | B25: =NA() ->  | C25: =NA() ->  | D25: =NA() ->  | E25: =NA() ->  | F25: =NA() ->  | G25: =NA() ->  | H25: =NA() ->  | I25: =NA() ->  | J25: =NA() ->  | K25: =NA() ->  | L25: =NA() ->  | M25: =NA() ->  | N25: =NA() ->  | O25: =NA() ->  | P25: =NA() ->  | Q25: =NA() ->  | R25: =NA() ->  | S25: =NA() ->  | T25: =NA() ->  | U25: =NA() ->  | V25: =NA() ->  | W25: =NA() ->  | X25: =NA() ->  | Y25: =NA() ->  | Z25: =NA() ->  | AA25: =NA() ->  | AB25: =NA() ->  | AC25: =NA() ->  | AD25: =NA() ->  | AE25: =NA() ->  | AF25: =NA() ->  | AG25: =NA() ->  | AH25: =NA() ->  | AI25: =NA() ->  | AJ25: =NA() ->  | AK25: =NA() ->  | AL25: 0.861 | AM25: 0.903 | AN25: 0.849 | AO25: 0.922 | AP25: 0.868 | AQ25: 0.866 | AR25: 0.898 | AS25: 0.914 | AT25: 0.88 | AU25: 0.884 | AV25: 0.879 | AW25: 0.877 | AX25: 0.874 | AY25: 0.876 | AZ25: 0.882
A26: 190 | B26: =NA() ->  | C26: =NA() ->  | D26: =NA() ->  | E26: =NA() ->  | F26: =NA() ->  | G26: =NA() ->  | H26: =NA() ->  | I26: =NA() ->  | J26: =NA() ->  | K26: =NA() ->  | L26: =NA() ->  | M26: =NA() ->  | N26: =NA() ->  | O26: =NA() ->  | P26: =NA() ->  | Q26: =NA() ->  | R26: =NA() ->  | S26: =NA() ->  | T26: =NA() ->  | U26: =NA() ->  | V26: =NA() ->  | W26: =NA() ->  | X26: =NA() ->  | Y26: =NA() ->  | Z26: =NA() ->  | AA26: =NA() ->  | AB26: =NA() ->  | AC26: =NA() ->  | AD26: =NA() ->  | AE26: =NA() ->  | AF26: =NA() ->  | AG26: =NA() ->  | AH26: =NA() ->  | AI26: =NA() ->  | AJ26: =NA() ->  | AK26: =NA() ->  | AL26: 0.865 | AM26: 0.889 | AN26: 0.852 | AO26: 0.917 | AP26: 0.874 | AQ26: 0.854 | AR26: 0.897 | AS26: 0.922 | AT26: 0.873 | AU26: 0.885 | AV26: 0.875 | AW26: 0.878 | AX26: 0.87 | AY26: 0.872 | AZ26: 0.885
A27: 200 | B27: =NA() ->  | C27: =NA() ->  | D27: =NA() ->  | E27: =NA() ->  | F27: =NA() ->  | G27: =NA() ->  | H27: =NA() ->  | I27: =NA() ->  | J27: =NA() ->  | K27: =NA() ->  | L27: =NA() ->  | M27: =NA() ->  | N27: =NA() ->  | O27: =NA() ->  | P27: =NA() ->  | Q27: =NA() ->  | R27: =NA() ->  | S27: =NA() ->  | T27: =NA() ->  | U27: =NA() ->  | V27: =NA() ->  | W27: =NA() ->  | X27: =NA() ->  | Y27: =NA() ->  | Z27: =NA() ->  | AA27: =NA() ->  | AB27: =NA() ->  | AC27: =NA() ->  | AD27: =NA() ->  | AE27: =NA() ->  | AF27: =NA() ->  | AG27: =NA() ->  | AH27: =NA() ->  | AI27: =NA() ->  | AJ27: =NA() ->  | AK27: =NA() ->  | AL27: 0.868 | AM27: 0.884 | AN27: 0.855 | AO27: 0.914 | AP27: 0.861 | AQ27: 0.843 | AR27: 0.898 | AS27: 0.903 | AT27: 0.871 | AU27: 0.884 | AV27: 0.877 | AW27: 0.874 | AX27: 0.872 | AY27: 0.866 | AZ27: 0.883
A28: 210 | B28: =NA() ->  | C28: =NA() ->  | D28: =NA() ->  | E28: =NA() ->  | F28: =NA() ->  | G28: =NA() ->  | H28: =NA() ->  | I28: =NA() ->  | J28: =NA() ->  | K28: =NA() ->  | L28: =NA() ->  | M28: =NA() ->  | N28: =NA() ->  | O28: =NA() ->  | P28: =NA() ->  | Q28: =NA() ->  | R28: =NA() ->  | S28: =NA() ->  | T28: =NA() ->  | U28: =NA() ->  | V28: =NA() ->  | W28: =NA() ->  | X28: =NA() ->  | Y28: =NA() ->  | Z28: =NA() ->  | AA28: =NA() ->  | AB28: =NA() ->  | AC28: =NA() ->  | AD28: =NA() ->  | AE28: =NA() ->  | AF28: =NA() ->  | AG28: =NA() ->  | AH28: =NA() ->  | AI28: =NA() ->  | AJ28: =NA() ->  | AK28: =NA() ->  | AL28: 0.873 | AM28: 0.889 | AN28: 0.841 | AO28: 0.923 | AP28: 0.863 | AQ28: 0.853 | AR28: 0.901 | AS28: 0.898 | AT28: 0.897 | AU28: 0.883 | AV28: 0.886 | AW28: 0.893 | AX28: 0.877 | AY28: 0.863 | AZ28: 0.887

Sheet FitMacro
A1: Fitting curve | D1: Counter | H1: y | I1: Fit | J1: RS | P1: Rmax | Q1: D | R1: τ | S1: C
A2: y = Rmax(1-exp((t-D)/τ) + C | D2: 51 | F2: x | G2: -30 | H2: =IFERROR(INDEX(Data!$B$4:$AZ$28,ROW()-1,FitMacro!$D$2),"") -> 0.73 | I2: =IF($G2>$E$12,$E$11*(1-EXP(-($G2-$E$12)/$E$13))+$E$14,$E$14) -> 0.7222836492 | J2: =IFERROR((H2-I2)^2,"") -> 5.954206896e-05 | M2: 2-DG | N2: 200601_17 | O2: GCL | P2: 0.07152314434 | Q2: 9.233939215 | R2: 11.07798033 | S2: 0.6962497838
G3: -20 | H3: =IFERROR(INDEX(Data!$B$4:$AZ$28,ROW()-1,FitMacro!$D$2),"") -> 0.726 | I3: 0.7222836492 | J3: 1.381126293e-05 | M3: 2-DG | N3: 200601_17 | O3: IPL | P3: 0.02670217113 | Q3: 19.43079386 | R3: 0.9322622328 | S3: 0.7587990001
D4: Drug | E4: =INDEX(Data!$B1:$AZ1,FitMacro!$D$2) -> Metformin | G4: -10 | H4: =IFERROR(INDEX(Data!$B$4:$AZ$28,ROW()-1,FitMacro!$D$2),"") -> 0.724 | I4: 0.7222836492 | J4: 2.94585991e-06 | M4: 2-DG | N4: 200601_17 | O4: PRS | P4: 0.2032003068 | Q4: 11.12490104 | R4: 0.2839922414 | S4: 0.6587991197
D5: DataID | E5: =INDEX(Data!$B2:$AZ2,FitMacro!$D$2) -> 200522_18 | G5: 0 | H5: =IFERROR(INDEX(Data!$B$4:$AZ$28,ROW()-1,FitMacro!$D$2),"") -> 0.72 | I5: 0.7222836492 | J5: 5.21505388e-06 | M5: 2-DG | N5: 200601_18 | O5: GCL | P5: 0.0551329355 | Q5: 7.669250999 | R5: 15.47074816 | S5: 0.7027480082
D6: Layer | E6: =INDEX(Data!$B3:$AZ3,FitMacro!$D$2) -> PRS | G6: 10 | H6: =IFERROR(INDEX(Data!$B$4:$AZ$28,ROW()-1,FitMacro!$D$2),"") -> 0.716 | I6: 0.7222836492 | J6: 3.948424785e-05 | M6: 2-DG | N6: 200601_18 | O6: IPL | P6: 0.0277220699 | Q6: 9.569951728 | R6: 8.369179249 | S6: 0.7452488618
G7: 20 | H7: =IFERROR(INDEX(Data!$B$4:$AZ$28,ROW()-1,FitMacro!$D$2),"") -> 0.715 | I7: 0.7222836492 | J7: 5.305154634e-05 | M7: 2-DG | N7: 200601_18 | O7: PRS | P7: 0.2132506286 | Q7: 9.966237973 | R7: 0.720361385 | S7: 0.6672497317
D8: Basal | E8: 0.6942386597 | G8: 30 | H8: =IFERROR(INDEX(Data!$B$4:$AZ$28,ROW()-1,FitMacro!$D$2),"") -> 0.725 | I8: 0.7222836492 | J8: 7.378561418e-06 | M8: 2-DG | N8: 200601_22 | O8: GCL | P8: 0.04156543332 | Q8: 7.995851069 | R8: 11.1307783 | S8: 0.6859993182
D9: MAX | E9: 0.7727207977 | G9: 40 | H9: =IFERROR(INDEX(Data!$B$4:$AZ$28,ROW()-1,FitMacro!$D$2),"") -> 0.745 | I9: 0.7456320664 | J9: 3.995079616e-07 | M9: 2-DG | N9: 200601_22 | O9: IPL | P9: 0.02483470555 | Q9: 18.6333461 | R9: 1.058560387 | S9: 0.7410009411
G10: 50 | H10: =IFERROR(INDEX(Data!$B$4:$AZ$28,ROW()-1,FitMacro!$D$2),"") -> 0.776 | I10: 0.7737554698 | J10: 5.037915997e-06 | M10: 2-DG | N10: 200601_22 | O10: PRS | P10: 0.1777644794 | Q10: 9.890647012 | R10: 0.8002954715 | S10: 0.6762477825
D11: Rmax | E11: 0.1674888701 | G11: 60 | H11: =IFERROR(INDEX(Data!$B$4:$AZ$28,ROW()-1,FitMacro!$D$2),"") -> 0.797 | I11: 0.7963916847 | J11: 3.700474565e-07 | M11: 2-DG | N11: 200608_19 | O11: GCL | P11: 0.06574850812 | Q11: 12.29746388 | R11: 15.24620636 | S11: 0.6851991656
D12: D | E12: 33.08325288 | G12: 70 | H12: =IFERROR(INDEX(Data!$B$4:$AZ$28,ROW()-1,FitMacro!$D$2),"") -> 0.812 | I12: 0.8146113228 | J12: 6.819006525e-06 | K12: START MACRO 'Fitting' TO SEE RESULTS | M12: 2-DG | N12: 200608_19 | O12: IPL | P12: 0.04587730333 | Q12: 8.937804203 | R12: 14.90684985 | S12: 0.7472488128
A13: EXCEPTION: | D13: τ | E13: 46.07211445 | G13: 80 | H13: =IFERROR(INDEX(Data!$B$4:$AZ$28,ROW()-1,FitMacro!$D$2),"") -> 0.825 | I13: 0.829276107 | J13: 1.828509129e-05 | K13: The data and fitting curve will be displayed | M13: 2-DG | N13: 200608_19 | O13: PRS | P13: 0.2401891018 | Q13: 17.95498638 | R13: 0.8715104532 | S13: 0.6738047994
A14: 2-DG in PRS analyzed upto 50 min | D14: C | E14: 0.7222836492 | G14: 90 | H14: =IFERROR(INDEX(Data!$B$4:$AZ$28,ROW()-1,FitMacro!$D$2),"") -> 0.844 | I14: 0.841079629 | J14: =IFERROR((H14-I14)^2,"") -> 8.528566762e-06 | K14: one by one | M14: 2-DG | N14: 200608_21 | O14: GCL | P14: 0.0727566355 | Q14: 14.90785055 | R14: 12.26652518 | S14: 0.7047986877
A15: to omit the recovery phase | G15: 100 | H15: =IFERROR(INDEX(Data!$B$4:$AZ$28,ROW()-1,FitMacro!$D$2),"") -> 0.851 | I15: 0.8505801527 | J15: =IFERROR((H15-I15)^2,"") -> 1.762717218e-07 | M15: 2-DG | N15: 200608_21 | O15: IPL | P15: 0.06039585944 | Q15: 14.90668312 | R15: 15.55346653 | S15: 0.7649995988
D16: RSS | E16: =SUM(J2:J26) -> 0.0002613234704 | G16: 110 | H16: =IFERROR(INDEX(Data!$B$4:$AZ$28,ROW()-1,FitMacro!$D$2),"") -> 0.86 | I16: 0.8582270188 | J16: 3.143462431e-06 | M16: 2-DG | N16: 200608_21 | O16: PRS | P16: 0.2402370147 | Q16: 10.5181254 | R16: 1.872916222 | S16: 0.672398352
G17: 120 | H17: =IFERROR(INDEX(Data!$B$4:$AZ$28,ROW()-1,FitMacro!$D$2),"") -> 0.865 | I17: 0.8643818963 | J17: 3.820521729e-07 | M17: 2-DG | N17: 200608_22 | O17: GCL | P17: 0.06489606672 | Q17: 10.00243079 | R17: 14.76240527 | S17: 0.6931963493
G18: 130 | H18: =IFERROR(INDEX(Data!$B$4:$AZ$28,ROW()-1,FitMacro!$D$2),"") -> 0.871 | I18: 0.8693358889 | J18: 2.769265836e-06 | M18: 2-DG | N18: 200608_22 | O18: IPL | P18: 0.05353996074 | Q18: 12.52903907 | R18: 15.73265221 | S18: 0.7525980953
G19: 140 | H19: =IFERROR(INDEX(Data!$B$4:$AZ$28,ROW()-1,FitMacro!$D$2),"") -> 0.873 | I19: 0.8733233025 | J19: 1.045244852e-07 | M19: 2-DG | N19: 200608_22 | O19: PRS | P19: 0.2214665085 | Q19: 10.4010503 | R19: 0.753314648 | S19: 0.6737819008
G20: 150 | H20: =IFERROR(INDEX(Data!$B$4:$AZ$28,ROW()-1,FitMacro!$D$2),"") -> 0.875 | I20: 0.8765327274 | J20: 2.349253218e-06 | M20: AICAR | N20: 200601_16 | O20: GCL | P20: 0.1896824994 | Q20: 9.620362324 | R20: 11.65525582 | S20: 0.6884979293
G21: 160 | H21: =IFERROR(INDEX(Data!$B$4:$AZ$28,ROW()-1,FitMacro!$D$2),"") -> 0.876 | I21: 0.8791159578 | J21: 9.709193281e-06 | M21: AICAR | N21: 200601_16 | O21: IPL | P21: 0.1402233463 | Q21: 9.551366799 | R21: 13.67435246 | S21: 0.7322478991
G22: 170 | H22: =IFERROR(INDEX(Data!$B$4:$AZ$28,ROW()-1,FitMacro!$D$2),"") -> 0.885 | I22: 0.8811951714 | J22: 1.447672104e-05 | M22: AICAR | N22: 200601_16 | O22: PRS | P22: 0.1919168532 | Q22: 11.39791901 | R22: 36.72910921 | S22: 0.6521984518
G23: 180 | H23: =IFERROR(INDEX(Data!$B$4:$AZ$28,ROW()-1,FitMacro!$D$2),"") -> 0.882 | I23: 0.8828687072 | J23: 7.546522183e-07 | M23: AICAR | N23: 200601_18 | O23: GCL | P23: 0.2309513503 | Q23: 8.854082436 | R23: 12.56276544 | S23: 0.6762480049
G24: 190 | H24: =IFERROR(INDEX(Data!$B$4:$AZ$28,ROW()-1,FitMacro!$D$2),"") -> 0.885 | I24: 0.8842157176 | J24: 6.150988267e-07 | M24: AICAR | N24: 200601_18 | O24: IPL | P24: 0.1560535172 | Q24: 8.693609989 | R24: 12.6394171 | S24: 0.7317480589
G25: 200 | H25: =IFERROR(INDEX(Data!$B$4:$AZ$28,ROW()-1,FitMacro!$D$2),"") -> 0.883 | I25: 0.8852999114 | J25: 5.289592289e-06 | M25: AICAR | N25: 200601_18 | O25: PRS | P25: 0.1830699565 | Q25: 13.70656289 | R25: 30.44385804 | S25: 0.6665983374
G26: 210 | H26: =IFERROR(INDEX(Data!$B$4:$AZ$28,ROW()-1,FitMacro!$D$2),"") -> 0.887 | I26: 0.8861725669 | J26: 6.846456071e-07 | M26: AICAR | N26: 200601_21 | O26: GCL | P26: 0.2052375744 | Q26: 7.665731547 | R26: 10.69742545 | S26: 0.6834979931
M27: AICAR | N27: 200601_21 | O27: IPL | P27: 0.127783516 | Q27: 7.567524817 | R27: 13.4094517 | S27: 0.7504981312
M28: AICAR | N28: 200601_21 | O28: PRS | P28: 0.1842255589 | Q28: 14.42158378 | R28: 34.8716305 | S28: 0.6697983247
M29: AICAR | N29: 200608_15 | O29: GCL | P29: 0.2244922159 | Q29: 9.60489465 | R29: 9.482639379 | S29: 0.6659980182
M30: AICAR | N30: 200608_15 | O30: IPL | P30: 0.1142784048 | Q30: 9.890319005 | R30: 12.56683644 | S30: 0.7497503274
M31: AICAR | N31: 200608_15 | O31: PRS | P31: 0.1684681923 | Q31: 16.1807732 | R31: 34.33629282 | S31: 0.6615991246
M32: AICAR | N32: 200608_16 | O32: GCL | P32: 0.2004812598 | Q32: 9.524383235 | R32: 11.30626906 | S32: 0.6949980448
M33: AICAR | N33: 200608_16 | O33: IPL | P33: 0.1293627827 | Q33: 9.5239012 | R33: 13.06681103 | S33: 0.7517478009
M34: AICAR | N34: 200608_16 | O34: PRS | P34: 0.1834829995 | Q34: 15.6146397 | R34: 29.55413202 | S34: 0.6737986526
M35: AICAR | N35: 200608_18 | O35: GCL | P35: 0.1823633129 | Q35: 11.05678047 | R35: 12.92347839 | S35: 0.6933984351
M36: AICAR | N36: 200608_18 | O36: IPL | P36: 0.1146697209 | Q36: 10.31836571 | R36: 16.4572746 | S36: 0.7457988058
M37: AICAR | N37: 200608_18 | O37: PRS | P37: 0.1884045432 | Q37: 16.35021616 | R37: 29.81507492 | S37: 0.6635985033
M38: Metformin | N38: 200518_18 | O38: GCL | P38: 0.2159916542 | Q38: 22.69281879 | R38: 130.0311776 | S38: 0.7078312411
M39: Metformin | N39: 200518_18 | O39: IPL | P39: 0.1342659377 | Q39: 27.27065427 | R39: 27.79533059 | S39: 0.7683315123
M40: Metformin | N40: 200518_18 | O40: PRS | P40: 0.1756171778 | Q40: 47.20200924 | R40: 61.47181767 | S40: 0.6918730903
M41: Metformin | N41: 200518_20 | O41: GCL | P41: 0.2307517834 | Q41: 29.99998623 | R41: 76.33955825 | S41: 0.7141583629
M42: Metformin | N42: 200518_20 | O42: IPL | P42: 0.1227109196 | Q42: 33.63495902 | R42: 34.04561721 | S42: 0.7512833799
M43: Metformin | N43: 200518_20 | O43: PRS | P43: 0.1686981748 | Q43: 44.21863575 | R43: 63.2625191 | S43: 0.7014988486
M44: Metformin | N44: 200518_21 | O44: GCL | P44: 0.2413976953 | Q44: 26.28686441 | R44: 83.77986027 | S44: 0.6914974304
M45: Metformin | N45: 200518_21 | O45: IPL | P45: 0.1665910376 | Q45: 22.82435831 | R45: 41.264041 | S45: 0.7518306103
M46: Metformin | N46: 200518_21 | O46: PRS | P46: 0.2218764705 | Q46: 42.28923025 | R46: 69.46066431 | S46: 0.6858751677
M47: Metformin | N47: 200522_17 | O47: GCL | P47: 0.2249341564 | Q47: 37.51161573 | R47: 78.78754372 | S47: 0.6898555306
M48: Metformin | N48: 200522_17 | O48: IPL | P48: 0.1439896642 | Q48: 33.6052255 | R48: 47.7525234 | S48: 0.742854689
M49: Metformin | N49: 200522_17 | O49: PRS | P49: 0.1867241131 | Q49: 40.62931513 | R49: 71.77279132 | S49: 0.7177478767
M50: Metformin | N50: 200522_18 | O50: GCL | P50: 0.1679088868 | Q50: 26.66947282 | R50: 51.38876804 | S50: 0.7106640445
M51: Metformin | N51: 200522_18 | O51: IPL | P51: 0.1116461125 | Q51: 24.72643653 | R51: 32.89827819 | S51: 0.7644975665
M52: Metformin | N52: 200522_18 | O52: PRS | P52: 0.1674888701 | Q52: 33.08325288 | R52: 46.07211445 | S52: 0.7222836492

Sheet Table
D1: 2-DG | G1: AICAR | J1: Metformin | O1: 2-DG | R1: AICAR | U1: Metformin
C2: GCL | D2: IPL | E2: PRS | F2: GCL | G2: IPL | H2: PRS | I2: GCL | J2: IPL | K2: PRS | N2: GCL | O2: IPL | P2: PRS | Q2: GCL | R2: IPL | S2: PRS | T2: GCL | U2: IPL | V2: PRS
A3: Time constant | B3: #1 | C3: =FitMacro!R2 -> 11.07798033 | D3: =FitMacro!R3 -> 0.9322622328 | E3: =FitMacro!R4 -> 0.2839922414 | F3: =FitMacro!R20 -> 11.65525582 | G3: =FitMacro!R21 -> 13.67435246 | H3: =FitMacro!R22 -> 36.72910921 | I3: =FitMacro!R38 -> 130.0311776 | J3: =FitMacro!R39 -> 27.79533059 | K3: =FitMacro!R40 -> 61.47181767 | M3: Amplitude (ΔFRET/CFP) | N3: =C21&" ± "&C22 -> 0.062 ± 0.012 | O3: 0.04 ± 0.015 | P3: 0.22 ± 0.02 | Q3: 0.21 ± 0.02 | R3: 0.13 ± 0.02 | S3: 0.18 ± 0.01 | T3: 0.22 ± 0.03 | U3: 0.14 ± 0.02 | V3: 0.18 ± 0.02
B4: #2 | C4: =FitMacro!R5 -> 15.47074816 | D4: =FitMacro!R6 -> 8.369179249 | E4: =FitMacro!R7 -> 0.720361385 | F4: =FitMacro!R23 -> 12.56276544 | G4: =FitMacro!R24 -> 12.6394171 | H4: =FitMacro!R25 -> 30.44385804 | I4: =FitMacro!R41 -> 76.33955825 | J4: =FitMacro!R42 -> 34.04561721 | K4: =FitMacro!R43 -> 63.2625191 | M4: Time constant (min) | N4: =C10&" ± "&C11 -> 13 ± 2 | O4: 9.4 ± 7.1 | P4: 0.88 ± 0.53 | Q4: 11 ± 1 | R4: 14 ± 1 | S4: 33 ± 3 | T4: 84 ± 29 | U4: 37 ± 8 | V4: 62 ± 10
B5: #3 | C5: =FitMacro!R8 -> 11.1307783 | D5: =FitMacro!R9 -> 1.058560387 | E5: =FitMacro!R10 -> 0.8002954715 | F5: =FitMacro!R26 -> 10.69742545 | G5: =FitMacro!R27 -> 13.4094517 | H5: =FitMacro!R28 -> 34.8716305 | I5: =FitMacro!R44 -> 83.77986027 | J5: =FitMacro!R45 -> 41.264041 | K5: =FitMacro!R46 -> 69.46066431
B6: #4 | C6: =FitMacro!R11 -> 15.24620636 | D6: =FitMacro!R12 -> 14.90684985 | E6: =FitMacro!R13 -> 0.8715104532 | F6: =FitMacro!R29 -> 9.482639379 | G6: =FitMacro!R30 -> 12.56683644 | H6: =FitMacro!R31 -> 34.33629282 | I6: =FitMacro!R47 -> 78.78754372 | J6: =FitMacro!R48 -> 47.7525234 | K6: =FitMacro!R49 -> 71.77279132
B7: #5 | C7: =FitMacro!R14 -> 12.26652518 | D7: =FitMacro!R15 -> 15.55346653 | E7: =FitMacro!R16 -> 1.872916222 | F7: =FitMacro!R32 -> 11.30626906 | G7: =FitMacro!R33 -> 13.06681103 | H7: =FitMacro!R34 -> 29.55413202 | I7: =FitMacro!R50 -> 51.38876804 | J7: =FitMacro!R51 -> 32.89827819 | K7: =FitMacro!R52 -> 46.07211445
B8: #6 | C8: =FitMacro!R17 -> 14.76240527 | D8: =FitMacro!R18 -> 15.73265221 | E8: =FitMacro!R19 -> 0.753314648 | F8: =FitMacro!R35 -> 12.92347839 | G8: =FitMacro!R36 -> 16.4572746 | H8: =FitMacro!R37 -> 29.81507492 | O8: 2-DG | P8: AICAR | Q8: Metformin
N9: GCL | O9: =C21&" ± "&C22 -> 0.062 ± 0.012 | P9: =F21&" ± "&F22 -> 0.21 ± 0.02 | Q9: =I21&" ± "&I22 -> 0.22 ± 0.03
A10: mean | C10: =ROUND(AVERAGE(C3:C8),0) -> 13 | D10: =ROUND(AVERAGE(D3:D8),1) -> 9.4 | E10: =ROUND(AVERAGE(E3:E8),2) -> 0.88 | F10: =ROUND(AVERAGE(F3:F8),0) -> 11 | G10: 14 | H10: 33 | I10: 84 | J10: 37 | K10: 62 | M10: Amplitude (ΔFRET/CFP) | N10: IPL | O10: =D21&" ± "&D22 -> 0.04 ± 0.015 | P10: =G21&" ± "&G22 -> 0.13 ± 0.02 | Q10: =J21&" ± "&J22 -> 0.14 ± 0.02
A11: SD | C11: =ROUND(STDEV(C3:C8),0) -> 2 | D11: =ROUND(STDEV(D3:D8),1) -> 7.1 | E11: =ROUND(STDEV(E3:E8),2) -> 0.53 | F11: =ROUND(STDEV(F3:F8),0) -> 1 | G11: 1 | H11: 3 | I11: 29 | J11: 8 | K11: 10 | N11: PRS | O11: =E21&" ± "&E22 -> 0.22 ± 0.02 | P11: =H21&" ± "&H22 -> 0.18 ± 0.01 | Q11: =K21&" ± "&K22 -> 0.18 ± 0.02
N13: GCL | O13: =C10&" ± "&C11 -> 13 ± 2 | P13: =F10&" ± "&F11 -> 11 ± 1 | Q13: =I10&" ± "&I11 -> 84 ± 29
A14: Amplitude | B14: #1 | C14: =FitMacro!P2 -> 0.07152314434 | D14: =FitMacro!P3 -> 0.02670217113 | E14: =FitMacro!P4 -> 0.2032003068 | F14: =FitMacro!P20 -> 0.1896824994 | G14: =FitMacro!P21 -> 0.1402233463 | H14: =FitMacro!P22 -> 0.1919168532 | I14: =FitMacro!P38 -> 0.2159916542 | J14: =FitMacro!P39 -> 0.1342659377 | K14: =FitMacro!P40 -> 0.1756171778 | M14: Time constant (min) | N14: IPL | O14: =D10&" ± "&D11 -> 9.4 ± 7.1 | P14: =G10&" ± "&G11 -> 14 ± 1 | Q14: =J10&" ± "&J11 -> 37 ± 8
B15: #2 | C15: =FitMacro!P5 -> 0.0551329355 | D15: =FitMacro!P6 -> 0.0277220699 | E15: =FitMacro!P7 -> 0.2132506286 | F15: =FitMacro!P23 -> 0.2309513503 | G15: =FitMacro!P24 -> 0.1560535172 | H15: =FitMacro!P25 -> 0.1830699565 | I15: =FitMacro!P41 -> 0.2307517834 | J15: =FitMacro!P42 -> 0.1227109196 | K15: =FitMacro!P43 -> 0.1686981748 | N15: PRS | O15: =E10&" ± "&E11 -> 0.88 ± 0.53 | P15: =H10&" ± "&H11 -> 33 ± 3 | Q15: =K10&" ± "&K11 -> 62 ± 10
B16: #3 | C16: =FitMacro!P8 -> 0.04156543332 | D16: =FitMacro!P9 -> 0.02483470555 | E16: =FitMacro!P10 -> 0.1777644794 | F16: =FitMacro!P26 -> 0.2052375744 | G16: =FitMacro!P27 -> 0.127783516 | H16: =FitMacro!P28 -> 0.1842255589 | I16: =FitMacro!P44 -> 0.2413976953 | J16: =FitMacro!P45 -> 0.1665910376 | K16: =FitMacro!P46 -> 0.2218764705
B17: #4 | C17: =FitMacro!P11 -> 0.06574850812 | D17: =FitMacro!P12 -> 0.04587730333 | E17: =FitMacro!P13 -> 0.2401891018 | F17: =FitMacro!P29 -> 0.2244922159 | G17: =FitMacro!P30 -> 0.1142784048 | H17: =FitMacro!P31 -> 0.1684681923 | I17: =FitMacro!P47 -> 0.2249341564 | J17: =FitMacro!P48 -> 0.1439896642 | K17: =FitMacro!P49 -> 0.1867241131
B18: #5 | C18: =FitMacro!P14 -> 0.0727566355 | D18: =FitMacro!P15 -> 0.06039585944 | E18: =FitMacro!P16 -> 0.2402370147 | F18: =FitMacro!P32 -> 0.2004812598 | G18: =FitMacro!P33 -> 0.1293627827 | H18: =FitMacro!P34 -> 0.1834829995 | I18: =FitMacro!P50 -> 0.1679088868 | J18: =FitMacro!P51 -> 0.1116461125 | K18: =FitMacro!P52 -> 0.1674888701
B19: #6 | C19: =FitMacro!P17 -> 0.06489606672 | D19: =FitMacro!P18 -> 0.05353996074 | E19: =FitMacro!P19 -> 0.2214665085 | F19: =FitMacro!P35 -> 0.1823633129 | G19: =FitMacro!P36 -> 0.1146697209 | H19: =FitMacro!P37 -> 0.1884045432
A21: mean | C21: =ROUND(AVERAGE(C14:C19),3) -> 0.062 | D21: =ROUND(AVERAGE(D14:D19),3) -> 0.04 | E21: =ROUND(AVERAGE(E14:E19),2) -> 0.22 | F21: 0.21 | G21: 0.13 | H21: 0.18 | I21: 0.22 | J21: 0.14 | K21: 0.18
A22: SD | C22: =ROUND(STDEV(C14:C19),3) -> 0.012 | D22: =ROUND(STDEV(D14:D19),3) -> 0.015 | E22: =ROUND(STDEV(E14:E19),2) -> 0.02 | F22: 0.02 | G22: 0.02 | H22: 0.01 | I22: 0.03 | J22: 0.02 | K22: 0.02
